Cogmind - Beta 16.1 @@@ ROGUE MODE // 2026.04.12 @ 18:08:37 Player: skelll Result: Destroyed by as-10659 with Assembled F-torch Performance ------------- Evolutions (1) 500 Regions Visited (3) 600 Robots Destroyed (23) 115 Value Destroyed (465) 465 Prototype IDs (2) 40 Alien Tech Used (0) 0 Bonus (0) 0 TOTAL SCORE: 1720 Bonus ------- None Cogmind --------- Core Integrity 0/400 Matter 122/300 Energy 12/100 System Corruption 3% Temperature Cool (40) Movement Core (1400) Ox27 Location -9/Mines Parts ------- > --- POWER (1) -------- (None) > --- PROPULSION (2) --- (None) > --- UTILITY (3) ------ Huge Storage Unit ECM Suite > --- WEAPON (3) ------- (None) > --- INVENTORY (25) --- Light Ion Engine Light Ion Engine Improved Treads Improved Treads Aluminum Leg Makeshift Leg Armored Wheel Armored Wheel Small Storage Unit High-capacity Storage Unit Weight Redist. System Structural Scanner Seismic Detector Targeting Computer Targeting Computer Small Laser Improved Medium Laser Beam Cannon Beam Cannon Datajack Peak State ------------ > --- POWER ------------ Ion Engine > --- PROPULSION ------- Armored Wheel Armored Wheel > --- UTILITY ---------- Huge Storage Unit Large Matter Pod ECM Suite > --- WEAPON ----------- Heavy EM Pulse Gun Autogun Grenade Launcher > --- INVENTORY -------- Light Ion Engine Light Ion Engine Light Ion Engine Improved Treads Improved Treads Aluminum Leg Armored Wheel Armored Wheel Flight Unit Small Storage Unit High-capacity Storage Unit Structural Scanner Seismic Detector Targeting Computer Targeting Computer Heavy EM Pulse Gun Medium Laser Small Laser Improved Medium Laser Beam Cannon Beam Cannon Light Assault Rifle Datajack Mining Laser [Rating: 16] Favorites ----------- Power Ion Engine Engine Ion Engine Propulsion Armored Wheel Wheel Armored Wheel Flight Unit Flight Unit Utility ECM Suite Device ECM Suite Storage Huge Storage Unit Processor Signal Interpreter Weapon Light Assault Rifle Energy Gun Heavy EM Pulse Gun Ballistic Gun Light Assault Rifle Launcher Grenade Launcher Special Weapon Mining Laser Special Melee Weapon Datajack Build | -11 -10 -9 -9 ------- Run | Yrd Mat Mat Min Slots Evolved 2 | . . 2 . Power . | . . . . Propulsion . | . . . . Utility 1 | . . 1 . Weapon 1 | . . 1 . Parts Attached 25 | 6 10 7 2 Power 3 | 1 2 . . Engine 3 | 1 2 . . Core . | . . . . Reactor . | . . . . Propulsion 5 | 2 2 . 1 Treads . | . . . . Leg . | . . . . Wheel 4 | 2 2 . . Hover . | . . . . Flight 1 | . . . 1 Utility 7 | 1 3 3 . Device 2 | . 1 1 . Storage 4 | 1 1 2 . Processor 1 | . 1 . . Hackware . | . . . . Protection . | . . . . Artifact . | . . . . Weapon 10 | 2 3 4 1 Energy Gun 5 | 2 1 2 . Energy Cannon . | . . . . Ballistic Gun 2 | . 1 1 . Ballistic Cannon . | . . . . Launcher 1 | . 1 . . Special Weapon 1 | . . . 1 Impact Weapon . | . . . . Slashing Weapon . | . . . . Piercing Weapon . | . . . . Special Melee Weapon 1 | . . 1 . Unidentified Prototypes . | . . . . Parts Lost 13 | . 1 1 11 Power 2 | . . . 2 Propulsion 3 | . . . 3 Utility 1 | . . . 1 Weapon 7 | . 1 1 5 Highest Loss Streak 11 | . 1 1 11 To Critical Strikes . | . . . . Average Backups 13 | . 5 21 22 Power 2 | . 1 2 2 Propulsion 3 | . 1 6 6 Utility 3 | . 1 5 7 Weapon 3 | . 1 6 5 Tool/Special . | . . . . Unused Backups 13 | . . 1 12 Power 2 | . . . 2 Propulsion 2 | . . . 2 Utility 5 | . . . 5 Weapon 4 | . . 1 3 Tool/Special . | . . . . Average Slot Usage (%) 95 | . 98 97 74 Engine 11 | . 14 11 7 Wheel 23 | . 28 22 14 Device 11 | . 7 11 21 Storage 16 | . 14 19 11 Processor 2 | . 5 . . Energy Gun 11 | . 14 11 5 Ballistic Gun 10 | . 8 11 11 Launcher 6 | . 4 9 . Peak Build Rating 16 | 6 11 16 16 Average Rating 10 | 4 7 14 11 On Entrance 8 | . 6 11 16 Avg Prop Armor Cover (%) . | . . . . Naked Turns . | . . . . Heaviest Build 97 | 12 51 97 95 Greatest Support 26 | 26 26 24 24 Greatest Overweight (x) 7 | . 4 4 7 Average Overweight (x) 1 | . . 3 3 Largest Inventory Capacity 25 | 8 20 25 25 Average Capacity 18 | 6 11 24 25 Most Carried 25 | . 16 25 23 Average Carried 13 | . 5 21 22 Final Capacity 25 | 8 20 25 25 Final Carried 23 | . 16 23 20 Class Distribution -------------------- 57% | Mutant 37% | Gunner 5% | Skirmisher Dominant Class ---------------- Mutant | -10/Materials Gunner | -9/Materials Mutant | -9/Mines Resources | -11 -10 -9 -9 ----------- Run | Yrd Mat Mat Min Matter Collected 512 | 242 63 207 . Remotely . | . . . . Salvage Created 723 | . 206 394 123 Parts 38 | . 8 30 . Haulers Intercepted . | . . . . Recyclers Shooed 1 | . . 1 . Parts Field Recycled . | . . . . Retrieved Matter . | . . . . Parts Self-Destructed . | . . . . Prevented . | . . . . Parts Restored . | . . . . Kills | -11 -10 -9 -9 ------- Run | Yrd Mat Mat Min Combat Hostiles Destroyed 23 | . 6 9 8 Guns 16 | . 5 3 8 AOE 7 | . 1 6 . Classes Destroyed 9 | . 2 6 1 Worker 1 | . . 1 . Builder 2 | . . 2 . Recycler 2 | . . 2 . Watcher 3 | . . 3 . Swarmer 6 | . 3 3 . Grunt 7 | . 3 4 . Brawler 1 | . . 1 . Duelist 1 | . . 1 . Assembled 8 | . . . 8 Best Kill Streak 13 | . 4 13 8 Combat Bots Only 8 | . 4 6 8 Max Kills in Single Turn 5 | . 2 5 1 Gunslinging 1 | . 1 . . Exploded 2 | . 1 2 . Melee . | . . . . Uniques/NPCs Destroyed . | . . . . Combat | -11 -10 -9 -9 -------- Run | Yrd Mat Mat Min Hostile Shots Fired 134 | . 25 22 87 Missed 23 | . 7 5 11 Hits 111 | . 18 17 76 Melee 4 | . . 1 3 Projectile 107 | . 18 16 73 Critical Strikes 1 | . . 1 . Part Disruptions 1 | . . . 1 Damage Taken 1516 | . 238 224 1054 Core 478 | . 67 19 392 Absorbed by Shields . | . . . . Core Remaining (%) 86 | 100 73 . . Volleys Fired 66 | . 13 18 35 Largest 3 | . 2 2 3 Hottest 90 | . 90 68 88 Shots Fired 101 | . 24 28 49 Gun 94 | . 24 21 49 Cannon . | . . . . Launcher 7 | . . 7 . Special . | . . . . Kinetic 53 | . . 10 43 Thermal 13 | . 13 . . Explosive 7 | . . 7 . Electromagnetic 28 | . 11 11 6 Robot Hit Streak 9 | . 6 5 9 Robot Miss Streak 4 | . 2 4 2 Penetration Max . | . . . . Secondary Targets 1 | . 1 . . Max Gunslinging Chain 1 | . 1 . . Shots Hit Robots 62 | . 16 12 34 Core Hits 54 | . 10 27 17 Critical Kills . | . . . . Critical Parts Destroyed . | . . . . Critical Strikes 2 | . . 1 1 Corrupt 2 | . . 1 1 Melee Attacks . | . . . . Impact . | . . . . Slashing . | . . . . Piercing . | . . . . Sneak Attacks . | . . . . Combat Hostiles . | . . . . Follow-up Attacks . | . . . . Damage Inflicted 1791 | . 293 1004 494 Guns 870 | . 199 177 494 Cannons . | . . . . Explosions 921 | . 94 827 . Melee . | . . . . Ramming . | . . . . Kinetic 496 | . . 68 428 Thermal 233 | . 207 26 . Explosive 801 | . . 801 . Electromagnetic 261 | . 86 109 66 Impact . | . . . . Slashing . | . . . . Piercing . | . . . . Highest Corruption 3 | . . . 3 Average Corruption 3 | . . . 3 Corruption Purged . | . . . . Corruption Blocked . | . . . . Effects 1 | . . . 1 Heat Flow Errors 1 | . . . 1 Overload Shots . | . . . . Overflow Damage 29 | . 15 14 . Projectiles . | . . . . Explosions 29 | . 15 14 . Melee . | . . . . Knockbacks . | . . . . Impact . | . . . . Kinetic . | . . . . Secondary . | . . . . Self-Inflicted Damage 100 | . 49 51 . Shots 3 | . 1 2 . Rammed . | . . . . Targets Rammed . | . . . . Kicked . | . . . . Crushed . | . . . . Highest Temperature 251 | . 251 44 207 Average Temperature 81 | . 117 20 74 Received Heat Transfer 673 | . 69 24 580 Siege Activations . | . . . . Martial Activations . | . . . . Shielding Activations . | . . . . Robots Disrupted . | . . . . Combat Hostiles . | . . . . Robots Corrupted . | . . . . Combat Hostiles . | . . . . Parts Fried . | . . . . Impact Corruptions . | . . . . Robots Melted . | . . . . Combat Hostiles . | . . . . Parts Melted 1 | . 1 . . Heat Transferred 433 | . 383 50 . Parts Sabotaged . | . . . . Parts Stolen . | . . . . Parts Stripped . | . . . . Power Chain Reactions 2 | . 1 1 . Alert | -11 -10 -9 -9 ------- Run | Yrd Mat Mat Min Maximum Alert Level 1 | . . 1 . Low Security (%) 95 | 100 100 89 100 Level 1 4 | . . 10 . Level 2 . | . . . . Level 3 . | . . . . Level 4 . | . . . . Level 5 . | . . . . High Security . | . . . . Max Security . | . . . . Peak Influence 221 | . 103 221 78 Initial 78 | . . . 78 Average 37 | . 35 47 30 Influence Increases 421 | . 143 278 . Destroy 0b10 Robot/C 300 | . 120 180 . Destroy 0b10 Robot/NC 40 | . . 40 . Destroy Leader 56 | . 20 36 . Successful Hack 5 | . . 5 . Destroy Structure 20 | . 3 17 . Influence Decreases 421 | . 143 75 203 Entered New Map 125 | . . . 125 Time Decay 236 | . 133 65 38 Lost Part 60 | . 10 10 40 Squads Dispatched 3 | . 1 2 . Investigation . | . . . . Extermination . | . . . . Reinforcement 3 | . 1 2 . Assault . | . . . . Garrison . | . . . . Intercept . | . . . . Searches Triggered . | . . . . Construction Impeded . | . . . . Haulers Reinforced . | . . . . Active Scanning Responses . | . . . . Cargo Convoy Interrupts . | . . . . Stealth | -11 -10 -9 -9 --------- Run | Yrd Mat Mat Min Distress Signals 2 | . . 2 . Communications Jammed . | . . . . Distress Signals . | . . . . Times Spotted 58 | . 8 13 37 Peak Tracking Total 20 | . 4 7 20 Tactical Retreats 4 | . . . 4 Traps | -11 -10 -9 -9 ------- Run | Yrd Mat Mat Min Traps Triggered . | . . . . Indirectly . | . . . . Trap Hack Attempts . | . . . . Triggered . | . . . . Disarmed . | . . . . Reprogrammed . | . . . . Reused . | . . . . Traps Extracted . | . . . . Installed . | . . . . Triggered . | . . . . Machines | -11 -10 -9 -9 ---------- Run | Yrd Mat Mat Min Machines Disabled 1 | . . 1 . Max in Single Turn 1 | . . 1 . Machines Repaired . | . . . . Machines Dismantled . | . . . . Machines Sabotaged . | . . . . Overloaded Fab Kills . | . . . . Hacking | -11 -10 -9 -9 --------- Run | Yrd Mat Mat Min Machines Accessed 2 | . 1 1 . Terminals 2 | . 1 1 . Fabricators . | . . . . Repair Stations . | . . . . Recycling Units . | . . . . Scanalyzers . | . . . . Garrison Access . | . . . . Total Hacks 5 | . 3 2 . Successful 2 | . 1 1 . Failed 3 | . 2 1 . Catastrophic . | . . . . Database Lockouts . | . . . . Manual . | . . . . Terminals 5 | . 3 2 . Fabricators . | . . . . Repair Stations . | . . . . Recycling Units . | . . . . Scanalyzers . | . . . . Garrison Access . | . . . . Terminal Hacks 2 | . 1 1 . Prototype ID Bank 1 | . . 1 . Locate Traps 1 | . 1 . . Fabricator Hacks . | . . . . Repair Station Hacks . | . . . . Recycling Unit Hacks . | . . . . Scanalyzer . | . . . . Garrison Access Hacks . | . . . . Unauthorized Hacks . | . . . . Terminals . | . . . . Fabricators . | . . . . Repair Stations . | . . . . Recycling Units . | . . . . Scanalyzers . | . . . . Garrison Access . | . . . . Data Cores Recovered . | . . . . Used . | . . . . Hacking Detections 2 | . 1 1 . Full Trace Events . | . . . . Feedback Events . | . . . . Feedback Blocked . | . . . . Robot Schematics Acquired . | . . . . Robots Built . | . . . . Authchips . | . . . . Time . | . . . . Total Robot Build Rating . | . . . . Part Schematics Acquired . | . . . . Parts Built . | . . . . Authchips . | . . . . Time . | . . . . Total Part Build Rating . | . . . . Part Studies Acquired . | . . . . Parts Repaired . | . . . . Time . | . . . . Parts Recycled . | . . . . Recycled Matter . | . . . . Retrieved Matter . | . . . . Retrieved Components . | . . . . Parts Scanalyzed . | . . . . Part Schematics Acquired . | . . . . Parts Damaged . | . . . . Bothacking | -11 -10 -9 -9 ------------ Run | Yrd Mat Mat Min Used RIF Installer . | . . . . Robots Hacked . | . . . . Non-combat . | . . . . Combat . | . . . . Robot Hacks Applied . | . . . . Relay Couplers Released . | . . . . Fabnet Peak Effective % . | . . . . Robots Rewired . | . . . . Allies Hacked . | . . . . Hacks Repelled . | . . . . Allies | -11 -10 -9 -9 -------- Run | Yrd Mat Mat Min Total Allies . | . . . . Largest Group . | . . . . Highest-Rated Group . | . . . . Highest-Rated Ally . | . . . . Total Orders . | . . . . Ally Attacks . | . . . . Total Damage . | . . . . Kills . | . . . . Allies Corrupted . | . . . . Allies Melted . | . . . . Intel | -11 -10 -9 -9 ------- Run | Yrd Mat Mat Min Active Infowar (turns) 755 | . 235 409 111 Sensors 126 | . . 24 102 ECM 755 | . 235 409 111 Robot Analysis Total . | . . . . Derelict Logs Recovered . | . . . . Drone Launches . | . . . . Drone Recoveries . | . . . . Exploration | -11 -10 -9 -9 ------------- Run | Yrd Mat Mat Min Turns Passed 995 | 70 405 409 111 Spaces Moved 596 | 74 292 225 5 Core 13 | 13 . . . Treads . | . . . . Legs . | . . . . Wheels 583 | 61 292 225 5 Hover . | . . . . Flight . | . . . . Fastest Speed 50 | 50 90 120 135 Average Speed 113 | 82 95 146 147 Slowest Speed 195 | 90 150 150 195 Overloaded Moves . | . . . . Propulsion Burnouts . | . . . . Robots Hopped . | . . . . Potential Cave-ins . | . . . . Cave-ins Triggered . | . . . . Exploration Rate (%) 16 | 4 38 21 3 Regions Visited 3 Branch Regions 1 Pre-discovered Areas . | . . . . Known Exits Taken . | . . . . Unknown Exits Taken 3 | 1 1 1 . Scrap Searched . | . . . . Spaces Dug . | . . . . Terrain Destroyed 22 | . 2 20 . Melee . | . . . . Projectile . | . . . . AOE 22 | . 2 20 . Terrain Rammed . | . . . . Walls Destroyed . | . . . . Machines Disabled . | . . . . Actions | -11 -10 -9 -9 --------- Run | Yrd Mat Mat Min Total 831 | 79 397 282 73 Wait 94 | . 53 13 28 Move 593 | 73 291 224 5 Hop . | . . . . Pick Up 32 | . 18 13 1 Fast Attach 8 | 6 2 . . Attach 17 | . 6 7 4 Detach 9 | . 6 3 . Swap 5 | . 4 1 . Drop 7 | . 4 3 . Fire 66 | . 13 18 35 Melee . | . . . . Ram . | . . . . Kick . | . . . . Crush . | . . . . Escape Stasis . | . . . . Rewire . | . . . . Trap . | . . . . Miscellaneous . | . . . . Route ------- -11/Scrapyard -10/Materials -9/Materials -9/Mines History --------- Turn | Location | Event 17 | -11/Scrapyard | Discovered new exit (range 15) 71 | -11/Scrapyard | Entered Materials 300 | -10/Materials | Build established: Mutant 434 | -10/Materials | Discovered new exit (range 14) 476 | -10/Materials | Entered another Materials area 476 | -9/Materials | Evolved 2 slots: Utility x1, Weapon x1 734 | -9/Materials | Discovered new exit (range 15) 785 | -9/Materials | Build established: Gunner 885 | -9/Materials | Entered Mines 886 | -9/Mines | Assembled infested the area 886 | -9/Mines | A Derelict revealed a hidden shortcut to a safe place 964 | -9/Mines | Core integrity fell below 50% 972 | -9/Mines | Destroyed 8 combat bots 985 | -9/Mines | Core integrity fell below 20% 996 | -9/Mines | Destroyed by as-10659 with Assembled F-torch Last Messages --------------- 00911_ Hvy. EM Pulse Gun destroyed. 00917_ Lgt. Assault Rifle destroyed. 00927_ as-13444 destroyed. 00930_ Ion Engine destroyed. 00934_ as-05587 destroyed. 00940_ as-63086 destroyed. 00943_ as-22426 destroyed. 00945_ Arm. Wheel destroyed. 00945_ System corrupted by crushing effect (+3). 00951_ as-04053 destroyed. [Achievement: There's More Where That Came From] 00969_ Autogun destroyed. 00969_ Arm. Wheel destroyed. 00971_ Acquired Mak. Leg. 00977_ System corrupted: Heat flow error (+229). 00981_ Lgt. Ion Engine destroyed. 00981_ Hvy. EM Pulse Gun destroyed. 00987_ Sensor Array destroyed. 00988_ Mining Laser destroyed. 00994_ Flight Unit destroyed. Map ----- +----------------------------------------------------+ | ?????????????????????????????? | | ?????????????????????????????? | | ?????????????????????????????? | | ?????????????????????????????? | | ?????????????????????????????? | | ?????????????????????????????? | | ?????????????????????????????? | | ?????????????????????????????? | | ?????????????????????????????? | | ?????????????????????????????? | | ?????????????????????????????? | | ?????????????????????????????? | | ?????????????????????????????? | | ?????????????????????????????? | | ?????????????????????????????? | | ?????????????????????????????? | | ?????????????????????????????? | | ?????????????????????????????? | | ?????????????????????????????? | | ?????????????????????????????? | | ?????????????????????????????? | | ?????????????????????????????? | | ?????????????????????????????? | | ???????????????????????####??? | | ??????????????????????## ##?? | | ????????# ?????????# @ #?? | | ???????# " ####% % #?? | | ???????# aaa #?? | | ????????# ######a #?? | | ??????????????????????## ##?? | | ???????????????????????####??? | | ?????????????????????????????? | | ?????????????????????????????? | | ?????????????????????????????? | | | | | | | | | | | | | | | | | | | | | | | | | | | | | | | | | +----------------------------------------------------+ Best States ------------- Heat Dissipation 28 Energy Generation 10 Energy Capacity 250 Matter Stores 300 Matter Capacity 450 Sight Range 16 Robot Scan Range 14 Terrain Scan Density 10 ECM Strength 1 Evasion (%) 50 Item Schematics ----------------- None Robot Schematics ------------------ None Fabricated ------------ Nothing Repaired ---------- Nothing Studied --------- None Alien Tech Used ----------------- None Achievements -------------- DATA ERROR: Steam Global Achievement% I Have A Map? Organ Harvest There's More Where That Came From Challenges ------------ None Game ------ Seed SpreadAuthchipLegs Manual? 0 Play Time 00:42:13 Cumulative 11.2 hours Start 2026.04.12 @ 17:16:32 End 2026.04.12 @ 18:08:37 Sessions 1 Manual Loads 0 Difficulty Rogue Special Mode None Game No. 21 Rogue 21 Adventurer 0 Explorer 0 Win Type - Total 0 Types 0/0/0/0/0/0/0/0/0/0 Lore% 9 Gallery% 12 Achievement% 7 Wizard Run 0 Options --------- Layout 1 ASCII 0 Keyboard 1 Movement Arrows Keybinds 0 Fullscreen 2 Font 24/Smallcaps Map View 50x35 Zoom Use 0% Tactical HUD 1 Map Filters NONE Filters NONE Steam 1 RUN: 3e04af4c-3b01-496e-ad06-98f134107d3d